Cogmind - Beta 13 @@@ ROGUE MODE // 2024.03.31 @ 20:48:14 Player: BionicSandwich Result: Destroyed by as-36519 with Assembled F-torch Performance ------------- Evolutions (0) 0 Regions Visited (4) 800 Robots Destroyed (15) 75 Value Destroyed (319) 319 Prototype IDs (3) 60 Alien Tech Used (0) 0 Bonus (137) 137 TOTAL SCORE: 1391 Bonus ------- Aligned with FarCom 300 Friendly Fire -163 Cogmind --------- Core Integrity 0/250 Matter 235/300 Energy 265/265 System Corruption 3% Temperature Cool (20) Movement Core (1450) Ox28 Location -9/Mines Parts ------- > --- POWER (1) -------- Improved Ion Engine (fused) > --- PROPULSION (2) --- (None) > --- UTILITY (2) ------ Huge Storage Unit Signal Interpreter > --- WEAPON (2) ------- (None) > --- INVENTORY (25) --- Heat Sink Small Storage Unit High-capacity Matter Pod (143) Utility Shielding Light Armor Plating Light Armor Plating Hardened Light Armor Plating Light Assault Rifle Light Cannon Grenade Launcher Datajack Peak State ------------ > --- POWER ------------ Improved Ion Engine > --- PROPULSION ------- Light Treads > --- UTILITY ---------- Huge Storage Unit Signal Interpreter > --- WEAPON ----------- AWS/Gauss > --- INVENTORY -------- Heat Sink Small Storage Unit High-capacity Matter Pod Utility Shielding Light Armor Plating Light Armor Plating Light Assault Rifle Light Cannon Grenade Launcher Grenade Launcher Datajack [Rating: 22] Favorites ----------- Power Improved Ion Engine Engine Improved Ion Engine Propulsion Light Treads Treads Light Treads Utility Signal Interpreter Storage Huge Storage Unit Processor Signal Interpreter Weapon Light Assault Rifle Energy Gun Small Laser Ballistic Gun Light Assault Rifle Ballistic Cannon Light Cannon Launcher Grenade Launcher Special Melee Weapon Datajack Build | -11 -10 -10 -10 -9 ------- Run | Yrd Mat Min Exi Min Slots Evolved . | . . . . . Power . | . . . . . Propulsion . | . . . . . Utility . | . . . . . Weapon . | . . . . . Parts Attached 21 | 7 8 4 1 1 Power 4 | 1 1 2 . . Engine 4 | 1 1 2 . . Core . | . . . . . Reactor . | . . . . . Propulsion 2 | 2 . . . . Treads 2 | 2 . . . . Leg . | . . . . . Wheel . | . . . . . Hover . | . . . . . Flight . | . . . . . Utility 4 | 2 2 . . . Device . | . . . . . Storage 3 | 2 1 . . . Processor 1 | . 1 . . . Hackware . | . . . . . Protection . | . . . . . Artifact . | . . . . . Weapon 11 | 2 5 2 1 1 Energy Gun 4 | 2 2 . . . Energy Cannon . | . . . . . Ballistic Gun 2 | . . 1 1 . Ballistic Cannon 1 | . . 1 . . Launcher 2 | . 1 . . 1 Special Weapon . | . . . . . Impact Weapon . | . . . . . Slashing Weapon . | . . . . . Piercing Weapon . | . . . . . Special Melee Weapon 2 | . 2 . . . Unidentified Prototypes 1 | . . . 1 . Parts Lost 4 | . 1 1 . 2 Power . | . . . . . Propulsion 2 | . . 1 . 1 Utility . | . . . . . Weapon 2 | . 1 . . 1 Highest Loss Streak 2 | . 1 1 . 2 To Critical Strikes . | . . . . . Average Slot Usage (%) 88 | . 100 97 82 65 Engine 14 | . 14 14 14 14 Treads 18 | . 28 25 14 11 Storage 14 | . 16 14 14 14 Processor 13 | . 11 14 14 14 Energy Gun 5 | . 23 7 . . Ballistic Gun 11 | . . 11 14 10 Ballistic Cannon 8 | . . 8 11 . Naked Turns . | . . . . . Heaviest Build 97 | 16 86 91 97 97 Greatest Support 40 | 40 40 40 20 20 Greatest Overweight (x) 29 | . 2 4 4 29 Average Overweight (x) 2 | . . 2 4 6 Largest Inventory Capacity 25 | 8 25 25 25 25 Average Capacity 23 | 7 14 25 25 25 Most Carried 13 | 3 5 9 13 12 Average Carried 7 | 1 3 5 9 11 Final Capacity 25 | 8 25 25 25 25 Final Carried 11 | 1 5 9 11 11 Class Distribution -------------------- 100% | Mutant Dominant Class ---------------- Mutant | -10/Materials Mutant | -10/Mines Mutant | -10/Exiles Mutant | -9/Mines Resources | -11 -10 -10 -10 -9 ----------- Run | Yrd Mat Min Exi Min Matter Collected 643 | 270 103 224 . 46 Remotely . | . . . . . Salvage Created 413 | 126 75 129 . 83 Parts 29 | 12 4 13 . . Haulers Intercepted . | . . . . . Recyclers Shooed 1 | . . 1 . . Parts Field Recycled . | . . . . . Retrieved Matter . | . . . . . Parts Self-Destructed . | . . . . . Prevented . | . . . . . Kills | -11 -10 -10 -10 -9 ------- Run | Yrd Mat Min Exi Min Combat Hostiles Destroyed 15 | . 4 4 . 7 Guns 5 | . 2 2 . 1 Cannons 2 | . . 2 . . AOE 8 | . 2 . . 6 Classes Destroyed 8 | 2 2 2 . 2 Tunneler 4 | 4 . . . . Recycler 1 | 1 . . . . Watcher 1 | . 1 . . . Swarmer 2 | . . 2 . . Grunt 4 | . 4 . . . Sentry 2 | . . 2 . . Assembled 7 | . . . . 7 Guerrilla 1 | . . . . 1 Best Kill Streak 7 | 4 2 2 . 7 Combat Bots Only 7 | . 2 2 . 7 Max Kills in Single Turn 2 | 1 1 1 . 2 Gunslinging . | . . . . . Exploded 2 | . 1 . . 2 Melee . | . . . . . Uniques/NPCs Destroyed . | . . . . . Combat | -11 -10 -10 -10 -9 -------- Run | Yrd Mat Min Exi Min Hostile Shots Fired 104 | . 34 37 . 33 Missed 32 | . 11 11 . 10 Damage Taken 1001 | . 358 306 . 337 Core 253 | . 35 91 . 127 Absorbed by Shields . | . . . . . Core Remaining (%) 100 | 100 . . . . Volleys Fired 50 | 13 13 18 1 5 Largest 2 | 2 2 2 2 1 Hottest 90 | 90 90 90 55 30 Shots Fired 93 | 26 23 30 2 12 Gun 74 | 26 14 26 1 7 Cannon 5 | . . 4 1 . Launcher 14 | . 9 . . 5 Special . | . . . . . Kinetic 27 | . . 18 2 7 Thermal 52 | 26 14 12 . . Explosive 14 | . 9 . . 5 Electromagnetic . | . . . . . Robot Hit Streak 18 | 6 18 3 . 5 Robot Miss Streak 5 | 1 1 5 . 2 Penetration Max . | . . . . . Secondary Targets . | . . . . . Autonomous 7 | . . . . 7 Shots Hit Robots 62 | 19 22 13 . 8 Core Hits 39 | 6 11 7 . 15 Critical Kills . | . . . . . Critical Parts Destroyed . | . . . . . Critical Strikes 2 | 1 1 . . . Burn 2 | 1 1 . . . Melee Attacks 5 | . 5 . . . Impact . | . . . . . Slashing . | . . . . . Piercing . | . . . . . Sneak Attacks . | . . . . . Combat Hostiles . | . . . . . Follow-up Attacks . | . . . . . Damage Inflicted 1386 | 236 544 155 . 451 Guns 625 | 236 146 77 . 166 Cannons 69 | . . 69 . . Explosions 676 | . 391 . . 285 Melee . | . . . . . Ramming 16 | . 7 9 . . Kinetic 277 | . . 111 . 166 Thermal 417 | 236 146 35 . . Explosive 676 | . 391 . . 285 Electromagnetic . | . . . . . Impact . | . . . . . Slashing . | . . . . . Piercing . | . . . . . Highest Corruption 3 | . . . . 3 Average Corruption 2 | . . . . 2 Corruption Purged . | . . . . . Corruption Blocked . | . . . . . Effects 3 | . . . . 3 Matter Fused 2 | . . . . 2 Parts Fused 1 | . . . . 1 Overload Shots . | . . . . . Overflow Damage 19 | . 10 . . 9 Projectiles . | . . . . . Explosions 19 | . 10 . . 9 Melee . | . . . . . Knockbacks . | . . . . . Impact . | . . . . . Kinetic . | . . . . . Secondary . | . . . . . Self-Inflicted Damage 104 | . 81 . . 23 Shots 5 | . 3 . . 2 Rammed 4 | . 2 2 . . Targets Rammed 4 | . 2 2 . . Kicked . | . . . . . Crushed . | . . . . . Highest Temperature 210 | 210 132 120 16 16 Average Temperature 54 | 73 57 37 12 4 Received Heat Transfer 390 | . 156 54 . 180 Siege Activations . | . . . . . Robots Corrupted . | . . . . . Combat Hostiles . | . . . . . Parts Fried . | . . . . . Impact Corruptions . | . . . . . Robots Melted . | . . . . . Combat Hostiles . | . . . . . Parts Melted 1 | . 1 . . . Heat Transferred 1287 | 694 506 87 . . Parts Sabotaged . | . . . . . Parts Stolen . | . . . . . Parts Stripped . | . . . . . Power Chain Reactions . | . . . . . Alert | -11 -10 -10 -10 -9 ------- Run | Yrd Mat Min Exi Min Peak Influence 190 | 25 190 56 . 13 Initial 16 | . 16 1 . . Average 34 | 7 101 10 . 2 Maximum Alert Level . | . . . . . Low Security (%) 100 | 100 100 100 . 100 Level 1 . | . . . . . Level 2 . | . . . . . Level 3 . | . . . . . Level 4 . | . . . . . Level 5 . | . . . . . High Security . | . . . . . Max Security . | . . . . . Squads Dispatched 2 | . 2 . . . Investigation 1 | . 1 . . . Extermination . | . . . . . Reinforcement 1 | . 1 . . . Assault . | . . . . . Garrison . | . . . . . Intercept . | . . . . . Searches Triggered . | . . . . . Construction Impeded . | . . . . . Haulers Reinforced . | . . . . . Active Scanning Responses . | . . . . . Cargo Convoy Interrupts . | . . . . . Stealth | -11 -10 -10 -10 -9 --------- Run | Yrd Mat Min Exi Min Distress Signals . | . . . . . Communications Jammed . | . . . . . Distress Signals . | . . . . . Times Spotted 22 | . 7 5 . 10 Peak Tracking Total 11 | . 2 3 . 11 Tactical Retreats 1 | . . 1 . . Traps | -11 -10 -10 -10 -9 ------- Run | Yrd Mat Min Exi Min Traps Triggered . | . . . . . Indirectly . | . . . . . Trap Hack Attempts 37 | . 37 . . . Triggered . | . . . . . Disarmed . | . . . . . Reprogrammed 1 | . 1 . . . Reused . | . . . . . Traps Extracted . | . . . . . Installed . | . . . . . Triggered . | . . . . . Machines | -11 -10 -10 -10 -9 ---------- Run | Yrd Mat Min Exi Min Machines Disabled 1 | . 1 . . . Max in Single Turn 1 | . 1 . . . Machines Repaired . | . . . . . Machines Dismantled . | . . . . . Machines Sabotaged . | . . . . . Overloaded Fab Kills . | . . . . . Hacking | -11 -10 -10 -10 -9 --------- Run | Yrd Mat Min Exi Min Machines Accessed 6 | . 2 . 4 . Terminals 2 | . 2 . . . Fabricators . | . . . . . Repair Stations . | . . . . . Recycling Units . | . . . . . Scanalyzers . | . . . . . Garrison Access . | . . . . . Total Hacks 37 | . 10 . 27 . Successful 33 | . 6 . 27 . Failed 4 | . 4 . . . Catastrophic . | . . . . . Database Lockouts . | . . . . . Manual 2 | . . . 2 . Terminals 10 | . 10 . . . Fabricators . | . . . . . Repair Stations . | . . . . . Recycling Units . | . . . . . Scanalyzers . | . . . . . Garrison Access . | . . . . . Terminal Hacks 33 | . 6 . 27 . Record 29 | . 2 . 27 . Prototype ID Bank 1 | . 1 . . . Alert Level 1 | . 1 . . . Locate Traps 1 | . 1 . . . Hauler Manifests 1 | . 1 . . . Fabricator Hacks . | . . . . . Repair Station Hacks . | . . . . . Recycling Unit Hacks . | . . . . . Scanalyzer . | . . . . . Garrison Access Hacks . | . . . . . Unauthorized Hacks . | . . . . . Terminals . | . . . . . Fabricators . | . . . . . Repair Stations . | . . . . . Recycling Units . | . . . . . Scanalyzers . | . . . . . Garrison Access . | . . . . . Data Cores Recovered . | . . . . . Used . | . . . . . Hacking Detections 2 | . 2 . . . Full Trace Events 1 | . 1 . . . Feedback Events . | . . . . . Feedback Blocked . | . . . . . Robot Schematics Acquired . | . . . . . Robots Built . | . . . . . Authchips . | . . . . . Time . | . . . . . Total Robot Build Rating . | . . . . . Part Schematics Acquired . | . . . . . Parts Built . | . . . . . Authchips . | . . . . . Time . | . . . . . Total Part Build Rating . | . . . . . Parts Repaired . | . . . . . Time . | . . . . . Parts Recycled . | . . . . . Recycled Matter . | . . . . . Retrieved Matter . | . . . . . Retrieved Components . | . . . . . Parts Scanalyzed . | . . . . . Part Schematics Acquired . | . . . . . Parts Damaged . | . . . . . Bothacking | -11 -10 -10 -10 -9 ------------ Run | Yrd Mat Min Exi Min Used RIF Installer . | . . . . . Robots Hacked 1 | . 1 . . . Non-combat . | . . . . . Combat 1 | . 1 . . . Robot Hacks Applied 2 | . 2 . . . parse_system 2 | . 2 . . . Relay Couplers Released . | . . . . . Fabnet Peak Effective % . | . . . . . Robots Rewired . | . . . . . Allies Hacked . | . . . . . Hacks Repelled . | . . . . . Allies | -11 -10 -10 -10 -9 -------- Run | Yrd Mat Min Exi Min Total Allies . | . . . . . Largest Group . | . . . . . Highest-Rated Group . | . . . . . Highest-Rated Ally . | . . . . . Total Orders . | . . . . . Ally Attacks . | . . . . . Total Damage . | . . . . . Kills . | . . . . . Allies Corrupted . | . . . . . Allies Melted . | . . . . . Intel | -11 -10 -10 -10 -9 ------- Run | Yrd Mat Min Exi Min Robot Analysis Total . | . . . . . Derelict Logs Recovered 1 | . . 1 . . Drone Launches . | . . . . . Drone Recoveries . | . . . . . Exploration | -11 -10 -10 -10 -9 ------------- Run | Yrd Mat Min Exi Min Turns Passed 4909 | 116 588 1306 2765 134 Spaces Moved 1261 | 50 249 365 575 22 Core 22 | 20 . . . 2 Treads 1239 | 30 249 365 575 20 Legs . | . . . . . Wheels . | . . . . . Hover . | . . . . . Flight . | . . . . . Fastest Speed 50 | 50 160 320 480 480 Average Speed 370 | 116 195 340 480 570 Slowest Speed 1500 | 160 320 480 480 1500 Overloaded Moves . | . . . . . Propulsion Burnouts . | . . . . . Robots Hopped . | . . . . . Cave-ins Triggered . | . . . . . Exploration Rate (%) 44 | 4 41 84 83 9 Regions Visited 4 Branch Regions 3 Pre-discovered Areas 1 | . . . 1 . Known Exits Taken 3 | . 1 1 1 . Unknown Exits Taken 1 | 1 . . . . Scrap Searched 2 | . . 1 . 1 Spaces Dug . | . . . . . Terrain Destroyed 80 | . 44 . . 36 Melee . | . . . . . Projectile 7 | . . . . 7 AOE 73 | . 44 . . 29 Terrain Rammed . | . . . . . Walls Destroyed . | . . . . . Machines Disabled . | . . . . . Actions | -11 -10 -10 -10 -9 --------- Run | Yrd Mat Min Exi Min Total 1418 | 82 323 400 583 30 Wait 6 | 5 1 . . . Move 1257 | 49 248 364 574 22 Hop . | . . . . . Pick Up 28 | 8 7 8 4 1 Fast Attach . | . . . . . Attach 11 | 7 1 1 1 1 Detach . | . . . . . Swap 10 | . 7 3 . . Drop 10 | . 2 4 3 1 Fire 50 | 13 13 18 1 5 Melee 5 | . 5 . . . Ram . | . . . . . Kick . | . . . . . Crush 4 | . 2 2 . . Escape Stasis . | . . . . . Rewire . | . . . . . Trap 37 | . 37 . . . Miscellaneous . | . . . . . Route ------- -11/Scrapyard -10/Materials (discovered 3 exits: *Mat / *Min x2) -10/Mines (discovered 3 exits: *Mat x2 / *Exi) -10/Exiles -9/Mines History --------- Turn | Location | Event 11 | -11/Scrapyard | Discovered new exit (range 15) 117 | -11/Scrapyard | Entered Materials 284 | -10/Materials | Discovered new exit (range 9) 299 | -10/Materials | Identified exit to Materials 314 | -10/Materials | Build established: Mutant 509 | -10/Materials | Discovered new exit (range 13) 590 | -10/Materials | Discovered new exit (range 11) 664 | -10/Materials | Identified exit to Mines 705 | -10/Materials | Entered Mines 1439 | -10/Mines | Learned Materials terminal intel 1446 | -10/Mines | Discovered exit to Materials (range 4) 1692 | -10/Mines | Discovered exit to Materials (range 5) 1788 | -10/Mines | Core integrity fell below 50% 1992 | -10/Mines | Deemed a non-threat by the Exiles lab entrance 1992 | -10/Mines | Discovered new exit (range 5) 2006 | -10/Mines | Identified exit to Exiles 2011 | -10/Mines | Entered Exiles 2147 | -10/Exiles | Met 8R-AWN 2239 | -10/Exiles | Met EX-HEX 2426 | -10/Exiles | Met EX-DEC 2763 | -10/Exiles | Visited The Gauntlet 3165 | -10/Exiles | Learned location of Zion (-7) 3352 | -10/Exiles | Discovered new exit (range 14) 3410 | -10/Exiles | Identified exit to Mines 3688 | -10/Exiles | Met EX-BIN 3765 | -10/Exiles | Aligned with FarCom system 3770 | -10/Exiles | Given EX-Vault access code 4281 | -10/Exiles | Opened EX-Vault 4305 | -10/Exiles | Found Prototype Ballistic Gun 4319 | -10/Exiles | Identified AWS/Gauss 4426 | -10/Exiles | Warned to stay clear of 0b10 Research branches 4776 | -10/Exiles | Left Exiles lab with AWS/Gauss 4776 | -10/Exiles | Entered Mines 4846 | -9/Mines | Assembled infested the area 4851 | -9/Mines | Assisted by a Guerilla fighting off Assembled 4882 | -9/Mines | Core integrity fell below 20% 4904 | -9/Mines | Destroyed 7 combat bots 4910 | -9/Mines | Destroyed by as-36519 with Assembled F-torch Last Messages --------------- as-05063 destroyed. Destroyed Asb. Heavy Rifle. A derelict is hurriedly installing traps. System corrupted: Imp. Ion Engine fused. as-51156 destroyed. EF-GZS(g): "Hehe, this'll put a wrench in their mining defense operations..." EF-GZS(g) slips into the shadows. as-01375 destroyed. Lgt. Treads destroyed. System corrupted by crushing effect (+2). as-42654 destroyed. as-10832 destroyed. as-05199 destroyed. The unstable cave ceiling collapses. System corrupted: Matter fused (-6). Grenade Launcher destroyed. The unstable cave ceiling collapses. System corrupted: Matter fused (-9). The unstable cave ceiling collapses. Map ----- +----------------------------------------------------+ | ???????????????????????????????????????? | | ???????????????????????????????????????? | | ???????????????????????????????????????? | | ???????????????????????????????????????? | | ???????????????????????????????????????? | | ???????????????????????????????????????? | | ???????????????????????????????????????? | | ???????????????????????????????????????? | | ???????????????????????????????????????? | | ????????????????????d??????????????????? | | ?????????????????????d?????????????????? | | ???????????????????????????????????????? | | ???????????????????????????????????????? | | ?????????????????????????#?????????????? | | ????????????????????????? ?????????????? | | ???????????????????????##r##???????????? | | ??????????????????????? #???????????? | | ???????????????????????# #?####??????? | | ??????????????????????## % ## #??????? | | ????????????????????### #??????? | | ????????????????????? ##??????? | | ?????????????????????# a # ##?????? | | ?????????????????????? a #?????? | | ?????????????????????## #?????? | | ?????????g???????????# ## ; #?????? | | ??????????????????????# @ #?????? | | ??????????????????????# % ^ #?????? | | ??????????????????????# [ #?????? | | ??????????????????????# ######?????? | | ??????????????????????# ## #??????????? | | ??????????????????????## ##|#??????????? | | ?????????????????????###t## #??????????? | | ?????????????????????# #??????????? | | ?????????????????????# ######??????????? | | ?????????????????????# #???????????????? | | ?????????????????????# #???????????????? | | ?????????????????????# #???????????????? | | ?????????????????????# ##??????????????? | | ????????????????????## ##?????????????? | | ????????????????????# #?????????????? | | ????????????????????# #????????? | | ????????????????????# ##????????? | | ????????????????????## ##?????????? | | ?????????????????????## #??????????? | | ???????????????????????## ##??????????? | | ?????????????????????????###???????????? | | ???????????????????????????????????????? | | ???????????????????????????????????????? | | ???????????????????????????????????????? | | ???????????????????????????????????????? | +----------------------------------------------------+ Best States ------------- Heat Dissipation 25 Energy Generation 12 Energy Capacity 265 Matter Stores 300 Matter Capacity 300 Sight Range 16 Terrain Scan Density 10 Evasion (%) 50 Recoil Reduction 2 Item Schematics ----------------- None Robot Schematics ------------------ None Fabricated ------------ Nothing Alien Tech Used ----------------- None Achievements -------------- Backstab Hehehe Librarian Tourist Challenges ------------ None Game ------ Seed MobileThermalStorm Manual? 0 Play Time 00:22:44 Cumulative 1.1 hours Start 2024.03.31 @ 20:26:41 End 2024.03.31 @ 20:48:14 Sessions 1 Manual Loads 0 Difficulty Rogue Special Mode None Game No. 5 Rogue 5 Adventurer 0 Explorer 0 Win Type - Total 0 Types 0/0/0/0/0/0/0/0/0 Lore% 6 Gallery% 6 Achievement% 8 Wizard Run 0 Options --------- Layout 1 ASCII 0 Keyboard 0 Movement Mouse Keybinds 0 Fullscreen 1 Font 48/Smallcaps Map View 50x35 Zoom Use 0% Tactical HUD 0 Map Filters NONE Filters NONE Steam 1 RUN: 0c531625-c047-45e4-bb55-279d70635151